Cogmind - Beta 14 @@@ ROGUE MODE // 2024.10.20 @ 10:18:21 Player: canerib Result: Destroyed by P-60 Hacker with Shock Rifle Performance ------------- Evolutions (3) 1500 Regions Visited (4) 800 Robots Destroyed (20) 100 Value Destroyed (551) 551 Prototype IDs (2) 40 Alien Tech Used (0) 0 Bonus (22) 22 TOTAL SCORE: 3013 Bonus ------- High Alert Combat Kills 22 Cogmind --------- Core Integrity 0/700 Matter 5/300 Energy 100/100 System Corruption 1% Temperature Cool (0) Movement Core (50) Location -7/Factory Parts ------- > --- POWER (1) -------- (None) > --- PROPULSION (6) --- (None) > --- UTILITY (4) ------ (None) > --- WEAPON (2) ------- (None) > --- INVENTORY (5) ---- Improved Carbon-fiber Leg Gravmag System EM Pulse Gun Heavy Mace Heavy Mace Peak State ------------ > --- POWER ------------ Improved Deuterium Engine > --- PROPULSION ------- Wheel Armored Wheel Flight Unit VTOL Module > --- UTILITY ---------- Small Storage Unit > --- WEAPON ----------- Heavy Rocket Launcher Mining Claw > --- INVENTORY -------- Ion Engine Light Deuterium Engine EM Pulse Gun Light Assault Rifle Light Assault Rifle [Rating: 16] Favorites ----------- Power Improved Ion Engine Engine Improved Ion Engine Propulsion Armored Wheel Leg VSS Leg Wheel Armored Wheel Flight Unit Flight Unit Utility Small Storage Unit Device Structural Scanner Storage Small Storage Unit Hackware Hacking Suite Weapon Light Assault Rifle Energy Gun EM Pulse Gun Ballistic Gun Light Assault Rifle Launcher Heavy Rocket Launcher Special Weapon Mining Laser Slashing Weapon Mining Claw Build | -11 -10 -9 -8 -7 ------- Run | Yrd Mat Mat Mat Fac Slots Evolved 6 | . . 2 2 2 Power . | . . . . . Propulsion 4 | . . . 2 2 Utility 2 | . . 2 . . Weapon . | . . . . . Parts Attached 41 | 6 7 17 6 5 Power 7 | 1 2 1 2 1 Engine 7 | 1 2 1 2 1 Core . | . . . . . Reactor . | . . . . . Propulsion 18 | 2 2 9 2 3 Treads . | . . . . . Leg 2 | . . . . 2 Wheel 10 | 2 . 6 2 . Hover . | . . . . . Flight 6 | . 2 3 . 1 Utility 4 | 1 2 1 . . Device 2 | . 1 1 . . Storage 1 | 1 . . . . Processor . | . . . . . Hackware 1 | . 1 . . . Protection . | . . . . . Artifact . | . . . . . Weapon 12 | 2 1 6 2 1 Energy Gun 1 | . . . . 1 Energy Cannon . | . . . . . Ballistic Gun 6 | 2 . 4 . . Ballistic Cannon . | . . . . . Launcher 1 | . . . 1 . Special Weapon 2 | . 1 1 . . Impact Weapon . | . . . . . Slashing Weapon 2 | . . 1 1 . Piercing Weapon . | . . . . . Special Melee Weapon . | . . . . . Unidentified Prototypes . | . . . . . Parts Lost 17 | . 3 7 5 2 Power 3 | . 1 2 . . Propulsion 9 | . 2 2 3 2 Utility 3 | . . 2 1 . Weapon 2 | . . 1 1 . Highest Loss Streak 4 | . 3 3 4 1 To Critical Strikes . | . . . . . Average Slot Usage (%) 56 | . 92 74 59 9 Engine 8 | . 12 10 8 2 Wheel 12 | . 20 19 11 . Flight 6 | . 7 2 16 3 Device 4 | . 10 7 . . Storage 7 | . 14 11 8 . Hackware 2 | . 3 6 . . Ballistic Gun 6 | . 20 6 2 . Special Weapon 1 | . 2 4 . . Slashing Weapon 3 | . . 6 7 . Peak Build Rating 16 | 6 9 13 16 6 Average Rating 7 | 4 7 10 12 3 On Entrance 3 | . 6 7 6 . Naked Turns 68 | . . . 22 46 Heaviest Build 24 | 10 13 16 24 5 Greatest Support 26 | 26 26 24 22 24 Greatest Overweight (x) 7 | . . 1 7 1 Average Overweight (x) . | . . . . . Largest Inventory Capacity 8 | 8 8 8 8 5 Average Capacity 7 | 7 8 8 7 5 Most Carried 8 | 7 8 8 5 5 Average Carried 5 | 4 6 7 4 3 Final Capacity 8 | 8 8 8 5 5 Final Carried 7 | 7 7 5 3 5 Class Distribution -------------------- 100% | Mutant Dominant Class ---------------- Mutant | -10/Materials Mutant | -9/Materials Mutant | -8/Materials Mutant | -7/Factory Resources | -11 -10 -9 -8 -7 ----------- Run | Yrd Mat Mat Mat Fac Matter Collected 525 | 272 52 155 35 11 Remotely . | . . . . . Salvage Created 533 | 75 85 156 217 . Parts 39 | 9 9 10 11 . Haulers Intercepted 2 | . . . 2 . Recyclers Shooed 1 | 1 . . . . Parts Field Recycled . | . . . . . Retrieved Matter . | . . . . . Parts Self-Destructed . | . . . . . Prevented . | . . . . . Kills | -11 -10 -9 -8 -7 ------- Run | Yrd Mat Mat Mat Fac Combat Hostiles Destroyed 13 | . 4 3 6 . Melee 1 | . . 1 . . Guns 6 | . 4 2 . . AOE 6 | . . . 6 . Classes Destroyed 10 | 2 3 2 3 . Worker 1 | . . . 1 . Tunneler 2 | 1 . . 1 . Hauler 2 | . . . 2 . Recycler 1 | 1 . . . . Operator 1 | . 1 . . . Swarmer 3 | . 3 . . . Grunt 7 | . 1 1 5 . Duelist 1 | . . 1 . . Sentry 1 | . . 1 . . Hunter 1 | . . . 1 . Best Kill Streak 6 | 1 4 2 6 . Combat Bots Only 3 | . 3 2 3 . Max Kills in Single Turn 2 | 1 1 1 2 . Gunslinging . | . . . . . Exploded 2 | . . . 2 . Melee 1 | . . 1 . . Uniques/NPCs Destroyed . | . . . . . Combat | -11 -10 -9 -8 -7 -------- Run | Yrd Mat Mat Mat Fac Hostile Shots Fired 293 | . 29 75 38 151 Missed 123 | . 10 16 15 82 Damage Taken 2701 | . 488 812 479 922 Core 1246 | . 123 232 188 703 Absorbed by Shields . | . . . . . Core Remaining (%) 64 | 100 50 42 65 . Volleys Fired 63 | 6 20 19 18 . Largest 2 | 2 2 2 1 . Hottest 100 | 40 100 100 39 . Shots Fired 100 | 12 36 33 19 . Gun 76 | 12 32 28 4 . Cannon . | . . . . . Launcher 15 | . . . 15 . Special 9 | . 4 5 . . Kinetic 76 | 12 32 28 4 . Thermal 9 | . 4 5 . . Explosive 15 | . . . 15 . Electromagnetic . | . . . . . Robot Hit Streak 7 | 4 7 6 4 . Robot Miss Streak 5 | 1 5 2 2 . Penetration Max . | . . . . . Secondary Targets 2 | . 1 1 . . Max Gunslinging Chain 1 | . 1 1 . . Shots Hit Robots 58 | 10 20 22 6 . Core Hits 39 | 4 9 8 18 . Critical Kills . | . . . . . Critical Parts Destroyed . | . . . . . Critical Strikes . | . . . . . Melee Attacks 12 | . . 12 . . Impact . | . . . . . Slashing 12 | . . 12 . . Piercing . | . . . . . Sneak Attacks . | . . . . . Combat Hostiles . | . . . . . Follow-up Attacks . | . . . . . Damage Inflicted 1653 | 80 171 215 1186 1 Guns 436 | 80 171 168 17 . Cannons . | . . . . . Explosions 1169 | . . . 1169 . Melee 47 | . . 47 . . Ramming 1 | . . . . 1 Kinetic 436 | 80 171 168 17 . Thermal . | . . . . . Explosive 1169 | . . . 1169 . Electromagnetic . | . . . . . Impact . | . . . . . Slashing 47 | . . 47 . . Piercing . | . . . . . Highest Corruption 11 | . 11 . 1 1 Average Corruption 4 | . 11 . 1 1 Corruption Purged . | . . . . . Corruption Blocked . | . . . . . Effects 7 | . 4 . 2 1 Message Errors 1 | . 1 . . . Matter Fused 1 | . 1 . . . Parts Rejected 1 | . 1 . . . Data Loss (minor) 3 | . 1 . 1 1 Misfires 1 | . . . 1 . Overload Shots . | . . . . . Overflow Damage 36 | . . . 36 . Projectiles . | . . . . . Explosions 36 | . . . 36 . Melee . | . . . . . Knockbacks . | . . . . . Impact . | . . . . . Kinetic . | . . . . . Secondary . | . . . . . Self-Inflicted Damage 59 | . . . 59 . Shots 3 | . . . 3 . Rammed 1 | . . . . 1 Targets Rammed 1 | . . . . 1 Kicked . | . . . . . Crushed . | . . . . . Highest Temperature 24 | . 20 24 5 . Average Temperature 9 | . 11 8 4 . Received Heat Transfer 522 | . 45 306 171 . Siege Activations . | . . . . . Robots Corrupted . | . . . . . Combat Hostiles . | . . . . . Parts Fried . | . . . . . Impact Corruptions . | . . . . . Robots Melted . | . . . . . Combat Hostiles . | . . . . . Parts Melted . | . . . . . Heat Transferred . | . . . . . Parts Sabotaged . | . . . . . Parts Stolen . | . . . . . Parts Stripped . | . . . . . Power Chain Reactions . | . . . . . Alert | -11 -10 -9 -8 -7 ------- Run | Yrd Mat Mat Mat Fac Peak Influence 460 | 10 136 204 460 333 Initial 206 | . 6 37 77 206 Average 161 | 5 54 109 268 267 Maximum Alert Level 2 | . . 1 2 1 Low Security (%) 58 | 100 100 94 31 . Level 1 36 | . . 5 40 100 Level 2 4 | . . . 28 . Level 3 . | . . . . . Level 4 . | . . . . . Level 5 . | . . . . . High Security . | . . . . . Max Security . | . . . . . Squads Dispatched 8 | . 3 1 2 2 Investigation 2 | . 1 . . 1 Extermination 1 | . . . . 1 Reinforcement 5 | . 2 1 2 . Assault . | . . . . . Garrison . | . . . . . Intercept . | . . . . . Searches Triggered . | . . . . . Construction Impeded . | . . . . . Haulers Reinforced . | . . . . . Active Scanning Responses . | . . . . . Cargo Convoy Interrupts . | . . . . . Stealth | -11 -10 -9 -8 -7 --------- Run | Yrd Mat Mat Mat Fac Distress Signals 4 | . 1 1 2 . Communications Jammed . | . . . . . Distress Signals . | . . . . . Times Spotted 59 | . 17 16 16 10 Peak Tracking Total 8 | . 5 8 5 5 Tactical Retreats 8 | . 1 1 1 5 Traps | -11 -10 -9 -8 -7 ------- Run | Yrd Mat Mat Mat Fac Traps Triggered 2 | . . . 1 1 Indirectly . | . . . . . Trap Hack Attempts . | . . . . . Triggered . | . . . . . Disarmed . | . . . . . Reprogrammed . | . . . . . Reused . | . . . . . Traps Extracted . | . . . . . Installed . | . . . . . Triggered . | . . . . . Machines | -11 -10 -9 -8 -7 ---------- Run | Yrd Mat Mat Mat Fac Machines Disabled 3 | . . . 3 . Max in Single Turn 1 | . . . 1 . Machines Repaired . | . . . . . Machines Dismantled . | . . . . . Machines Sabotaged . | . . . . . Overloaded Fab Kills . | . . . . . Hacking | -11 -10 -9 -8 -7 --------- Run | Yrd Mat Mat Mat Fac Machines Accessed 9 | . 5 3 . 1 Terminals 8 | . 5 3 . . Fabricators . | . . . . . Repair Stations 1 | . . . . 1 Recycling Units . | . . . . . Scanalyzers . | . . . . . Garrison Access . | . . . . . Total Hacks 27 | . 15 9 . 3 Successful 11 | . 5 5 . 1 Failed 16 | . 10 4 . 2 Catastrophic 3 | . 3 . . . Database Lockouts . | . . . . . Manual 6 | . 6 . . . Terminals 24 | . 15 9 . . Fabricators . | . . . . . Repair Stations 3 | . . . . 3 Recycling Units . | . . . . . Scanalyzers . | . . . . . Garrison Access . | . . . . . Terminal Hacks 10 | . 5 5 . . Prototype ID Bank 1 | . 1 . . . Level Access Points 1 | . 1 . . . Branch Access Points 1 | . . 1 . . Emergency Access Points 1 | . . 1 . . Alert Level 2 | . 1 1 . . Unreport Threat 1 | . 1 . . . Locate Traps 1 | . 1 . . . Dispatch Records 1 | . . 1 . . Surveillance Status 1 | . . 1 . . Fabricator Hacks . | . . . . . Repair Station Hacks 1 | . . . . 1 Scan Component 1 | . . . . 1 Recycling Unit Hacks . | . . . . . Scanalyzer . | . . . . . Garrison Access Hacks . | . . . . . Unauthorized Hacks . | . . . . . Terminals . | . . . . . Fabricators . | . . . . . Repair Stations . | . . . . . Recycling Units . | . . . . . Scanalyzers . | . . . . . Garrison Access . | . . . . . Data Cores Recovered . | . . . . . Used . | . . . . . Hacking Detections 4 | . 3 . . 1 Full Trace Events 2 | . 1 . . 1 Feedback Events . | . . . . . Feedback Blocked . | . . . . . Robot Schematics Acquired . | . . . . . Robots Built . | . . . . . Authchips . | . . . . . Time . | . . . . . Total Robot Build Rating . | . . . . . Part Schematics Acquired . | . . . . . Parts Built . | . . . . . Authchips . | . . . . . Time . | . . . . . Total Part Build Rating . | . . . . . Parts Repaired . | . . . . . Time . | . . . . . Parts Recycled . | . . . . . Recycled Matter . | . . . . . Retrieved Matter . | . . . . . Retrieved Components . | . . . . . Parts Scanalyzed . | . . . . . Part Schematics Acquired . | . . . . . Parts Damaged . | . . . . . Bothacking | -11 -10 -9 -8 -7 ------------ Run | Yrd Mat Mat Mat Fac Used RIF Installer . | . . . . . Robots Hacked . | . . . . . Non-combat . | . . . . . Combat . | . . . . . Robot Hacks Applied . | . . . . . Relay Couplers Released . | . . . . . Fabnet Peak Effective % . | . . . . . Robots Rewired . | . . . . . Allies Hacked . | . . . . . Hacks Repelled . | . . . . . Allies | -11 -10 -9 -8 -7 -------- Run | Yrd Mat Mat Mat Fac Total Allies . | . . . . . Largest Group . | . . . . . Highest-Rated Group . | . . . . . Highest-Rated Ally . | . . . . . Total Orders . | . . . . . Ally Attacks . | . . . . . Total Damage . | . . . . . Kills . | . . . . . Allies Corrupted . | . . . . . Allies Melted . | . . . . . Intel | -11 -10 -9 -8 -7 ------- Run | Yrd Mat Mat Mat Fac Robot Analysis Total . | . . . . . Derelict Logs Recovered . | . . . . . Drone Launches . | . . . . . Drone Recoveries . | . . . . . Exploration | -11 -10 -9 -8 -7 ------------- Run | Yrd Mat Mat Mat Fac Turns Passed 1281 | 90 268 349 219 355 Spaces Moved 1263 | 67 317 271 176 432 Core 149 | 12 . . 50 87 Treads . | . . . . . Legs 169 | . . . . 169 Wheels 534 | 55 140 213 126 . Hover . | . . . . . Flight 411 | . 177 58 . 176 Fastest Speed 34 | 50 37 34 50 35 Average Speed 78 | 82 60 83 97 78 Slowest Speed 400 | 90 90 117 400 115 Overloaded Moves . | . . . . . Propulsion Burnouts . | . . . . . Robots Hopped 9 | . 5 2 . 2 Cave-ins Triggered 1 | . 1 . . . Exploration Rate (%) 24 | 4 51 33 23 13 Regions Visited 4 Branch Regions . Pre-discovered Areas . | . . . . . Known Exits Taken 1 | . 1 . . . Unknown Exits Taken 3 | 1 . 1 1 . Scrap Searched . | . . . . . Spaces Dug 18 | . 4 14 . . Terrain Destroyed 153 | . 4 15 134 . Melee 10 | . . 10 . . Projectile 9 | . 4 5 . . AOE 134 | . . . 134 . Terrain Rammed . | . . . . . Walls Destroyed . | . . . . . Machines Disabled . | . . . . . Actions | -11 -10 -9 -8 -7 --------- Run | Yrd Mat Mat Mat Fac Total 1418 | 91 353 324 206 444 Wait 2 | . . 2 . . Move 1240 | 66 305 266 175 428 Hop 9 | . 5 2 . 2 Pick Up 37 | 13 8 6 4 6 Fast Attach . | . . . . . Attach 27 | 6 5 8 3 5 Detach 3 | . 2 . . 1 Swap 14 | . 2 9 3 . Drop 9 | . 5 . 3 1 Fire 63 | 6 20 19 18 . Melee 12 | . . 12 . . Ram 1 | . . . . 1 Kick . | . . . . . Crush . | . . . . . Escape Stasis 1 | . 1 . . . Rewire . | . . . . . Trap . | . . . . . Miscellaneous . | . . . . . Route ------- -11/Scrapyard -10/Materials (discovered 3 exits: *Mat x3) -9/Materials (discovered 2 exits: [*Mat] / Min) -8/Materials -7/Factory History --------- Turn | Location | Event 10 | -11/Scrapyard | Discovered new exit (range 16) 91 | -11/Scrapyard | Entered Materials 286 | -10/Materials | Crushed by falling debris 287 | -10/Materials | System corruption reached 10% 301 | -10/Materials | Identified exit to Materials 317 | -10/Materials | Lost 3 parts (1p2n) 324 | -10/Materials | Build established: Mutant 359 | -10/Materials | Entered another Materials area 359 | -9/Materials | Evolved 2 slots: Utility x2 433 | -9/Materials | Identified exit to Mines 694 | -9/Materials | Core integrity fell below 50% 707 | -9/Materials | Discovered new exit (range 4) 708 | -9/Materials | Entered another Materials area 708 | -8/Materials | Evolved 2 slots: Propulsion x2 725 | -8/Materials | Lost 3 parts (1p2n) 905 | -8/Materials | Released all parts (3) 915 | -8/Materials | Discovered new exit (range 13) 927 | -8/Materials | Entered Factory 927 | -7/Factory | Evolved 2 slots: Propulsion x2 935 | -7/Factory | Lost 4 parts (2n1u1w) 1098 | -7/Factory | Core integrity fell below 50% 1157 | -7/Factory | Core integrity fell below 20% 1282 | -7/Factory | Destroyed by P-60 Hacker with Shock Rifle Last Messages --------------- 01081_ Slammed into S-27 Virus. 01089_ Slug penetrates Wall. 01091_ K-01 Serf cleans the Fusion Modulator. 01095_ K-01 Serf destroyed. 01098_ Acquired 11 matter. 01116_ R-06 Scavenger collects Wheel. 01117_ Slug penetrates Wall. 01117_ VSS Leg destroyed. 01131_ Acquired Imp. Carbon-fiber Leg. 01169_ K-01 Serf cleans the DSF Access. 01177_ ALERT: Rogue bot located, Programmers report to Factory Zone 5R. 01224_ Slug penetrates Wall. 01225_ Acquired Gravmag System. 01236_ Slug penetrates Nuclear Reactor. 01251_ System corrupted: Component data lost. 01255_ Triggered Blade Trap. 01255_ Massive razor-sharp blades shoot up from within the floor. 01255_ VSS Leg severed. Map ----- +----------------------------------------------------+ | ?????????????????????????????????? | | ?????????????????????????????????? | | ?????????????????????????????????? | | ?????????????????????????????????? | | ?????????????????????????????????? | | ?????????????????????????????????? | | ?????????????????????????????????? | | ?????????????????????????????????? | | ?????????????????????????????????? | | ?????????????????????????????????? | | ?????????????????????????????????? | | ?????????????????????????????????? | | ?????????????????????????????????? | | ?????????????????????????????????# | | ????????##########???????????????# | | ????????# #???????????????# | | ????????# """ ] #???????????????# | | ????????# """ #???????????????# | | ????????# """ #???????????????# | | ????????# /#???????????????# | | ????????# #???????????????# | | ????????#] ""T"" #???????????????# | | ????????# """"" #???????????????# | | ????????# #???????????????# | | ????????#/##+#############+####### | | ????????#@ | | ????????# p | | ????????+ | | ????????# | | ????????# | | ????????#####+#####+######+####### | | ???????????# #???????????? | | ???????????# #???????????? | | ???????????# !#???????????? | | ???????????# ! #???????????? | | ???????????# #???????????? | | ???????????# #???????????? | | ???????????# ! #???????????? | | ???????????# #???????????? | | ???????????###########???????????? | | ?????????????????????????????????? | | ?????????????????????????????????? | | ?????????????????????????????????? | | ?????????????????????????????????? | | ?????????????????????????????????? | | ?????????????????????????????????? | | ?????????????????????????????????? | | ?????????????????????????????????? | | ?????????????????????????????????? | | ?????????????????????????????????? | +----------------------------------------------------+ Best States ------------- Heat Dissipation 34 Energy Generation 16 Energy Capacity 290 Matter Stores 300 Matter Capacity 300 Sight Range 16 Terrain Scan Density 10 Evasion (%) 63 Offensive Hacking 10 Item Schematics ----------------- None Robot Schematics ------------------ None Fabricated ------------ Nothing Alien Tech Used ----------------- None Achievements -------------- Maybe Next Time I'll Detach My Launcher Challenges ------------ None Game ------ Seed ArchitectShieldDoomcannon Manual? 0 Play Time 00:25:48 Cumulative 20.0 hours Start 2024.10.20 @ 09:51:59 End 2024.10.20 @ 10:18:21 Sessions 1 Manual Loads 0 Difficulty Rogue Special Mode None Game No. 30 Rogue 30 Adventurer 0 Explorer 0 Win Type - Total 0 Types 0/0/0/0/0/0/0/0/0 Lore% 14 Gallery% 24 Achievement% 23 Wizard Run 0 Options --------- Layout 1 ASCII 1 Keyboard 0 Movement Arrows Keybinds 0 Fullscreen 1 Font 24/Smallcaps Map View 50x35 Zoom Use 0% Tactical HUD 1 Map Filters NONE Filters NONE Steam 1 RUN: 702d0b0c-ac1a-4961-ab47-2b670e2bac54